[Event "Early-Titled-Tuesday-Blitz-September-05-2023"]
[Site "Chess.com"]
[Date "2023.09.05"]
[Round "10"]
[White "ural58"]
[Black "viktorskliarov"]
[Result "0-1"]
[WhiteElo "2518"]
[BlackElo "2652"]
[TimeControl "180+1"]
[EndTime "9:54:57 PDT"]
[Termination "viktorskliarov won on time"]

1. e4 {[%clk 0:02:58.9]} 1... c5 {[%clk 0:02:59.2]} 2. b3 {[%clk 0:02:58.2]}
2... Nc6 {[%clk 0:02:59.2]} 3. Bb2 {[%clk 0:02:52.7]} 3... Nf6 {[%clk
0:02:59.5]} 4. e5 {[%clk 0:02:24.5]} 4... Nd5 {[%clk 0:02:57.9]} 5. Nf3 {[%clk
0:02:00.5]} 5... e6 {[%clk 0:02:57.3]} 6. g3 {[%clk 0:01:50]} 6... Be7 {[%clk
0:02:57.3]} 7. c4 {[%clk 0:01:48.4]} 7... Nc7 {[%clk 0:02:54.1]} 8. Bg2 {[%clk
0:01:47.1]} 8... O-O {[%clk 0:02:54]} 9. O-O {[%clk 0:01:43.1]} 9... f6 {[%clk
0:02:53.6]} 10. d4 {[%clk 0:01:40.7]} 10... cxd4 {[%clk 0:02:51.9]} 11. exf6
{[%clk 0:01:40]} 11... Bxf6 {[%clk 0:02:51.5]} 12. Nxd4 {[%clk 0:01:39.6]} 12...
d5 {[%clk 0:02:30.6]} 13. Nxc6 {[%clk 0:01:31.8]} 13... bxc6 {[%clk 0:02:29]}
14. Qe2 {[%clk 0:01:25.9]} 14... Bxb2 {[%clk 0:02:10.7]} 15. Qxb2 {[%clk
0:01:18.3]} 15... Qf6 {[%clk 0:02:11.6]} 16. Nc3 {[%clk 0:01:13.2]} 16... Bd7
{[%clk 0:02:07.5]} 17. Rac1 {[%clk 0:01:08.9]} 17... a5 {[%clk 0:01:46.5]} 18.
Qa3 {[%clk 0:01:05.6]} 18... Ne8 {[%clk 0:01:36.2]} 19. Na4 {[%clk 0:01:04.3]}
19... Qd4 {[%clk 0:01:25.1]} 20. Rcd1 {[%clk 0:00:59.5]} 20... Qa7 {[%clk
0:01:20.3]} 21. Nc5 {[%clk 0:00:48.9]} 21... Bc8 {[%clk 0:01:20.3]} 22. Rfe1
{[%clk 0:00:47]} 22... Qf7 {[%clk 0:01:13.6]} 23. f4 {[%clk 0:00:46.7]} 23... h6
{[%clk 0:01:08.8]} 24. Rd2 {[%clk 0:00:45]} 24... a4 {[%clk 0:00:57]} 25. Nxa4
{[%clk 0:00:42.7]} 25... dxc4 {[%clk 0:00:51.6]} 26. Bxc6 {[%clk 0:00:33.2]}
26... Ra6 {[%clk 0:00:50.3]} 27. Bb5 {[%clk 0:00:30]} 27... Ra5 {[%clk
0:00:40.1]} 28. Bxc4 {[%clk 0:00:29.7]} 28... Qa7+ {[%clk 0:00:28.6]} 29. Rf2
{[%clk 0:00:28.1]} 29... Nf6 {[%clk 0:00:25.7]} 30. h3 {[%clk 0:00:15.4]} 30...
Nh5 {[%clk 0:00:25.6]} 31. Kg2 {[%clk 0:00:10.4]} 31... Bb7+ {[%clk 0:00:24.3]}
32. Kg1 {[%clk 0:00:08.3]} 32... Bd5 {[%clk 0:00:11.5]} 33. Bxd5 {[%clk
0:00:07.5]} 33... exd5 {[%clk 0:00:11.8]} 34. Qe7 {[%clk 0:00:07.6]} 34... Nxg3
{[%clk 0:00:09.7]} 35. Qxa7 {[%clk 0:00:07]} 35... Rxa7 {[%clk 0:00:10.6]} 36.
Kg2 {[%clk 0:00:06]} 36... Ne4 {[%clk 0:00:10.6]} 37. Rc2 {[%clk 0:00:06.3]}
37... Rxf4 {[%clk 0:00:10]} 38. Rc8+ {[%clk 0:00:06.2]} 38... Kh7 {[%clk
0:00:10.6]} 39. Re2 {[%clk 0:00:06.8]} 39... Raf7 {[%clk 0:00:10.2]} 40. Rd8
{[%clk 0:00:05.1]} 40... Rf2+ {[%clk 0:00:10.2]} 41. Rxf2 {[%clk 0:00:05.5]}
41... Rxf2+ {[%clk 0:00:10.9]} 42. Kg1 {[%clk 0:00:05.8]} 42... Rxa2 {[%clk
0:00:11.4]} 43. Rxd5 {[%clk 0:00:05.8]} 43... Ng5 {[%clk 0:00:12.1]} 44. h4
{[%clk 0:00:05.1]} 44... Nf3+ {[%clk 0:00:12.7]} 45. Kf1 {[%clk 0:00:05.8]}
45... Nxh4 {[%clk 0:00:13.4]} 46. Nc5 {[%clk 0:00:05.3]} 46... Nf3 {[%clk
0:00:12.9]} 47. b4 {[%clk 0:00:04.9]} 47... Rb2 {[%clk 0:00:12.3]} 48. Nd3
{[%clk 0:00:04.9]} 48... Rb3 {[%clk 0:00:11.4]} 49. b5 {[%clk 0:00:04.4]} 49...
Nd2+ {[%clk 0:00:10.6]} 50. Ke2 {[%clk 0:00:04.2]} 50... Ne4 {[%clk 0:00:10.8]}
0-1

[Event "Early-Titled-Tuesday-Blitz-September-05-2023"]
[Site "Chess.com"]
[Date "2023.09.05"]
[Round "10"]
[White "amintabatabaei"]
[Black "moro182"]
[Result "1-0"]
[WhiteElo "3022"]
[BlackElo "2859"]
[TimeControl "180+1"]
[EndTime "9:54:58 PDT"]
[Termination "amintabatabaei won by checkmate"]

1. e4 {[%clk 0:02:55.3]} 1... g6 {[%clk 0:03:00.9]} 2. d4 {[%clk 0:02:53.8]}
2... Bg7 {[%clk 0:03:00.8]} 3. Nc3 {[%clk 0:02:54.5]} 3... a6 {[%clk 0:03:01]}
4. f4 {[%clk 0:02:53.6]} 4... d5 {[%clk 0:03:00.9]} 5. Nxd5 {[%clk 0:02:41.9]}
5... e6 {[%clk 0:03:00.9]} 6. Ne3 {[%clk 0:02:41.6]} 6... Qxd4 {[%clk
0:03:01.8]} 7. Qxd4 {[%clk 0:02:41.5]} 7... Bxd4 {[%clk 0:03:02.7]} 8. Nf3
{[%clk 0:02:41.7]} 8... Bg7 {[%clk 0:03:02.5]} 9. e5 {[%clk 0:02:17]} 9... b6
{[%clk 0:03:00.9]} 10. g3 {[%clk 0:02:13.9]} 10... Bb7 {[%clk 0:03:00.6]} 11.
Bg2 {[%clk 0:02:14.5]} 11... Ne7 {[%clk 0:03:00.3]} 12. Kf2 {[%clk 0:02:12.6]}
12... Nd7 {[%clk 0:02:59.8]} 13. Nd4 {[%clk 0:02:00.9]} 13... Bxg2 {[%clk
0:02:59.1]} 14. Kxg2 {[%clk 0:02:01.8]} 14... O-O-O {[%clk 0:02:58.5]} 15. Nf3
{[%clk 0:01:56.3]} 15... h6 {[%clk 0:02:38]} 16. Re1 {[%clk 0:01:55.4]} 16... g5
{[%clk 0:02:23.4]} 17. fxg5 {[%clk 0:01:55.4]} 17... h5 {[%clk 0:01:52.5]} 18.
Nc4 {[%clk 0:01:31.8]} 18... Ng6 {[%clk 0:01:48.8]} 19. Bf4 {[%clk 0:01:16.4]}
19... Kb7 {[%clk 0:01:43.4]} 20. h4 {[%clk 0:01:14.8]} 20... b5 {[%clk
0:01:40.8]} 21. Na5+ {[%clk 0:01:14.1]} 21... Kb6 {[%clk 0:01:41.1]} 22. b4
{[%clk 0:01:13.4]} 22... c5 {[%clk 0:01:39]} 23. a3 {[%clk 0:01:11.2]} 23... c4
{[%clk 0:01:22.2]} 24. Rad1 {[%clk 0:01:06.6]} 24... Kc7 {[%clk 0:00:59.6]} 25.
Rd6 {[%clk 0:01:05.4]} 25... Nb8 {[%clk 0:00:57.6]} 26. Red1 {[%clk 0:01:03.6]}
26... Rxd6 {[%clk 0:00:57.5]} 27. Rxd6 {[%clk 0:00:40.9]} 27... Bf8 {[%clk
0:00:35.6]} 28. Rd1 {[%clk 0:00:37.9]} 28... Ne7 {[%clk 0:00:35.3]} 29. Nd2
{[%clk 0:00:27.6]} 29... Nd5 {[%clk 0:00:33.6]} 30. Ne4 {[%clk 0:00:27.9]} 30...
Be7 {[%clk 0:00:33.1]} 31. Kf3 {[%clk 0:00:26.3]} 31... Nd7 {[%clk 0:00:31]} 32.
Nf6 {[%clk 0:00:16.4]} 32... N7b6 {[%clk 0:00:29.3]} 33. Be3 {[%clk 0:00:15.4]}
33... Nxe3 {[%clk 0:00:21.2]} 34. Kxe3 {[%clk 0:00:16.3]} 34... Bxf6 {[%clk
0:00:21.1]} 35. exf6 {[%clk 0:00:15.1]} 35... Nd5+ {[%clk 0:00:21.2]} 36. Kf3
{[%clk 0:00:15.3]} 36... Rg8 {[%clk 0:00:15.5]} 37. Rd4 {[%clk 0:00:15.2]} 37...
Kd6 {[%clk 0:00:13.3]} 38. Nb7+ {[%clk 0:00:14.3]} 38... Kc6 {[%clk 0:00:13.5]}
39. Nc5 {[%clk 0:00:14.1]} 39... a5 {[%clk 0:00:14.1]} 40. Ke2 {[%clk
0:00:04.1]} 40... axb4 {[%clk 0:00:13.7]} 41. axb4 {[%clk 0:00:05]} 41... Ra8
{[%clk 0:00:07]} 42. Re4 {[%clk 0:00:02.7]} 42... Nc3+ {[%clk 0:00:04.5]} 43.
Ke3 {[%clk 0:00:03.3]} 43... Nxe4 {[%clk 0:00:04.6]} 44. Nxe4 {[%clk 0:00:04]}
44... Ra3+ {[%clk 0:00:05]} 45. Kf4 {[%clk 0:00:04.3]} 45... Ra1 {[%clk
0:00:04.3]} 46. g6 {[%clk 0:00:04.5]} 46... fxg6 {[%clk 0:00:03.1]} 47. Kg5
{[%clk 0:00:03.4]} 47... Rf1 {[%clk 0:00:01.7]} 48. Kxg6 {[%clk 0:00:03.5]}
48... c3 {[%clk 0:00:02.3]} 49. f7 {[%clk 0:00:03.5]} 49... Kd5 {[%clk
0:00:01.7]} 50. Nf6+ {[%clk 0:00:03.6]} 50... Kc4 {[%clk 0:00:02.2]} 51. f8=Q
{[%clk 0:00:03.8]} 51... Rf3 {[%clk 0:00:02.8]} 52. Qc5# {[%clk 0:00:03.7]} 1-0

[Event "Early-Titled-Tuesday-Blitz-September-05-2023"]
[Site "Chess.com"]
[Date "2023.09.05"]
[Round "10"]
[White "KorolDimitriy75"]
[Black "UB_TheQueen"]
[Result "0-1"]
[WhiteElo "2289"]
[BlackElo "2094"]
[TimeControl "180+1"]
[EndTime "9:54:58 PDT"]
[Termination "UB_TheQueen won on time"]

1. d4 {[%clk 0:03:00.9]} 1... Nf6 {[%clk 0:02:59.3]} 2. c4 {[%clk 0:03:01]} 2...
g6 {[%clk 0:02:59.7]} 3. Nc3 {[%clk 0:03:01.1]} 3... Bg7 {[%clk 0:03:00.3]} 4.
e4 {[%clk 0:03:01.5]} 4... O-O {[%clk 0:03:00.9]} 5. Nf3 {[%clk 0:03:01.8]} 5...
d6 {[%clk 0:03:01.5]} 6. Be2 {[%clk 0:03:01.9]} 6... e5 {[%clk 0:03:02]} 7. dxe5
{[%clk 0:03:02.8]} 7... dxe5 {[%clk 0:03:01.7]} 8. Qxd8 {[%clk 0:03:03.7]} 8...
Rxd8 {[%clk 0:03:01.9]} 9. Bg5 {[%clk 0:03:04.5]} 9... Be6 {[%clk 0:03:00.1]}
10. Nxe5 {[%clk 0:02:58.2]} 10... h6 {[%clk 0:02:54.7]} 11. Bh4 {[%clk 0:02:56]}
11... Re8 {[%clk 0:02:37.5]} 12. f4 {[%clk 0:02:14.3]} 12... g5 {[%clk
0:02:11.3]} 13. fxg5 {[%clk 0:02:07.3]} 13... hxg5 {[%clk 0:02:11.1]} 14. Bxg5
{[%clk 0:02:05.5]} 14... Nxe4 {[%clk 0:02:11.2]} 15. Nxe4 {[%clk 0:02:03.4]}
15... Bxe5 {[%clk 0:02:10.8]} 16. O-O-O {[%clk 0:01:37.5]} 16... Nd7 {[%clk
0:01:56.3]} 17. Bf3 {[%clk 0:00:52.4]} 17... f6 {[%clk 0:01:52.2]} 18. Be3
{[%clk 0:00:20]} 18... Nb6 {[%clk 0:01:40.5]} 19. b3 {[%clk 0:00:19.7]} 19... a5
{[%clk 0:01:41]} 20. Nc5 {[%clk 0:00:17.6]} 20... Bf5 {[%clk 0:01:33.5]} 21. Bd4
{[%clk 0:00:17.5]} 21... a4 {[%clk 0:01:30.7]} 22. Bxe5 {[%clk 0:00:15.9]} 22...
Rxe5 {[%clk 0:01:24]} 23. Kb2 {[%clk 0:00:15.3]} 23... Rxc5 {[%clk 0:01:23.4]}
24. Bxb7 {[%clk 0:00:13.3]} 24... Rb8 {[%clk 0:01:23.2]} 25. Ba6 {[%clk
0:00:10.3]} 25... Nxc4+ {[%clk 0:01:21]} 26. Bxc4+ {[%clk 0:00:09.1]} 26... Rxc4
{[%clk 0:01:21.9]} 27. Rhf1 {[%clk 0:00:08.7]} 27... Rc5 {[%clk 0:01:18.9]} 28.
Rd4 {[%clk 0:00:06.9]} 28... axb3 {[%clk 0:01:16.8]} 29. axb3 {[%clk 0:00:07.8]}
29... Rcb5 {[%clk 0:01:12.6]} 30. Rf3 {[%clk 0:00:07.2]} 30... Be6 {[%clk
0:01:03.6]} 31. Rdd3 {[%clk 0:00:06.9]} 31... Kg7 {[%clk 0:01:02]} 32. h3 {[%clk
0:00:05.9]} 32... c5 {[%clk 0:01:01.9]} 33. Rde3 {[%clk 0:00:05.7]} 33... Bf7
{[%clk 0:00:59.4]} 34. Rg3+ {[%clk 0:00:05.5]} 34... Kf8 {[%clk 0:00:59.1]} 35.
Kc2 {[%clk 0:00:05.8]} 35... c4 {[%clk 0:00:56.1]} 36. bxc4 {[%clk 0:00:06]}
36... Rb2+ {[%clk 0:00:56.2]} 37. Kc3 {[%clk 0:00:05.2]} 37... R8b3+ {[%clk
0:00:49.8]} 38. Kd4 {[%clk 0:00:05.4]} 38... Rb4 {[%clk 0:00:47.3]} 39. Rc3
{[%clk 0:00:04.6]} 39... Re2 {[%clk 0:00:42.7]} 40. Rgf3 {[%clk 0:00:03.8]}
40... Ke7 {[%clk 0:00:41.3]} 41. g4 {[%clk 0:00:03.7]} 41... Bg6 {[%clk
0:00:36.3]} 42. Kc5 {[%clk 0:00:02.3]} 42... Ra4 {[%clk 0:00:35.7]} 43. Rfe3+
{[%clk 0:00:02.3]} 43... Rxe3 {[%clk 0:00:35.2]} 44. Rxe3+ {[%clk 0:00:03.2]}
44... Kf7 {[%clk 0:00:34.9]} 45. Kb5 {[%clk 0:00:03.5]} 45... Ra2 {[%clk
0:00:31.3]} 46. c5 {[%clk 0:00:03.7]} 46... Rb2+ {[%clk 0:00:30.8]} 47. Kc6
{[%clk 0:00:03.9]} 47... Bc2 {[%clk 0:00:27.6]} 48. Kd6 {[%clk 0:00:03.8]} 48...
Ba4 {[%clk 0:00:27.3]} 49. Rc3 {[%clk 0:00:02.7]} 49... Rd2+ {[%clk 0:00:26.7]}
50. Kc7 {[%clk 0:00:03]} 50... Ke6 {[%clk 0:00:26.5]} 51. Kb6 {[%clk 0:00:02.9]}
51... Kd5 {[%clk 0:00:22.9]} 52. Rf3 {[%clk 0:00:02.8]} 52... Rb2+ {[%clk
0:00:22]} 53. Ka5 {[%clk 0:00:02.3]} 53... Bc2 {[%clk 0:00:14.8]} 0-1

[Event "Early-Titled-Tuesday-Blitz-September-05-2023"]
[Site "Chess.com"]
[Date "2023.09.05"]
[Round "10"]
[White "EvgenyBurmakin"]
[Black "H_E_D_G_E_H_O_G"]
[Result "0-1"]
[WhiteElo "2265"]
[BlackElo "2101"]
[TimeControl "180+1"]
[EndTime "9:55:02 PDT"]
[Termination "H_E_D_G_E_H_O_G won by checkmate"]

1. e4 {[%clk 0:03:00.9]} 1... e6 {[%clk 0:02:54.8]} 2. d4 {[%clk 0:02:59.8]}
2... d5 {[%clk 0:02:53.4]} 3. Nd2 {[%clk 0:03:00.3]} 3... Nf6 {[%clk 0:02:52.5]}
4. e5 {[%clk 0:03:00]} 4... Nfd7 {[%clk 0:02:52.7]} 5. f4 {[%clk 0:02:58.5]}
5... c5 {[%clk 0:02:53.6]} 6. c3 {[%clk 0:02:58.8]} 6... Nc6 {[%clk 0:02:54.4]}
7. Ndf3 {[%clk 0:02:57.9]} 7... cxd4 {[%clk 0:02:53.1]} 8. cxd4 {[%clk
0:02:57.8]} 8... Nb6 {[%clk 0:02:50.9]} 9. Bd3 {[%clk 0:02:54.5]} 9... Nb4
{[%clk 0:02:47.6]} 10. Bb1 {[%clk 0:02:52.9]} 10... a5 {[%clk 0:02:47.4]} 11.
Ne2 {[%clk 0:02:46.6]} 11... Bd7 {[%clk 0:02:46.9]} 12. O-O {[%clk 0:02:45.7]}
12... g6 {[%clk 0:02:42.5]} 13. a3 {[%clk 0:02:30.3]} 13... Nc6 {[%clk
0:02:42.1]} 14. Bd3 {[%clk 0:02:25]} 14... a4 {[%clk 0:02:41.1]} 15. Be3 {[%clk
0:02:17.5]} 15... Na5 {[%clk 0:02:39.1]} 16. Nd2 {[%clk 0:02:07.1]} 16... h5
{[%clk 0:02:27.2]} 17. Nc3 {[%clk 0:02:03.1]} 17... Bc6 {[%clk 0:02:20.5]} 18.
Rc1 {[%clk 0:01:59.3]} 18... Qd7 {[%clk 0:02:19.9]} 19. Bf2 {[%clk 0:01:52.4]}
19... Be7 {[%clk 0:02:14.9]} 20. Qe2 {[%clk 0:01:51.1]} 20... h4 {[%clk
0:02:02.7]} 21. h3 {[%clk 0:01:50.7]} 21... O-O-O {[%clk 0:01:51.4]} 22. Nb5
{[%clk 0:01:20.3]} 22... Kb8 {[%clk 0:01:50.2]} 23. Nd6 {[%clk 0:01:09.2]} 23...
Bxd6 {[%clk 0:01:49.4]} 24. exd6 {[%clk 0:01:10.1]} 24... Qxd6 {[%clk 0:01:42]}
25. Rc5 {[%clk 0:01:08.7]} 25... Nac4 {[%clk 0:01:36.6]} 26. Nxc4 {[%clk
0:01:06.6]} 26... dxc4 {[%clk 0:01:37.5]} 27. Bxc4 {[%clk 0:01:03.2]} 27... Nxc4
{[%clk 0:01:34.9]} 28. Qxc4 {[%clk 0:01:03.8]} 28... Rc8 {[%clk 0:01:29.4]} 29.
Be3 {[%clk 0:00:44.3]} 29... f5 {[%clk 0:01:10.1]} 30. Rc1 {[%clk 0:00:40.4]}
30... Qd7 {[%clk 0:00:44.8]} 31. Qb4 {[%clk 0:00:30.4]} 31... Bd5 {[%clk
0:00:28.2]} 32. Bf2 {[%clk 0:00:27.7]} 32... Rc6 {[%clk 0:00:15.4]} 33. R1c3
{[%clk 0:00:25.4]} 33... Rhc8 {[%clk 0:00:13]} 34. Bxh4 {[%clk 0:00:24.8]} 34...
Rxc5 {[%clk 0:00:09.8]} 35. dxc5 {[%clk 0:00:21.3]} 35... Bc6 {[%clk 0:00:08.8]}
36. Qc4 {[%clk 0:00:14.4]} 36... Rd8 {[%clk 0:00:08.9]} 37. Qe2 {[%clk 0:00:13]}
37... Qd5 {[%clk 0:00:08.5]} 38. Be1 {[%clk 0:00:11.5]} 38... Ka7 {[%clk
0:00:08.6]} 39. Re3 {[%clk 0:00:11]} 39... g5 {[%clk 0:00:06.9]} 40. Re5 {[%clk
0:00:09.7]} 40... Qb3 {[%clk 0:00:06.8]} 41. Rxe6 {[%clk 0:00:09.6]} 41... gxf4
{[%clk 0:00:06.6]} 42. Re7 {[%clk 0:00:09]} 42... f3 {[%clk 0:00:06.7]} 43. gxf3
{[%clk 0:00:09.2]} 43... Rg8+ {[%clk 0:00:06.8]} 44. Kf2 {[%clk 0:00:08.4]}
44... Qd5 {[%clk 0:00:05.6]} 45. Bd2 {[%clk 0:00:07.9]} 45... f4 {[%clk
0:00:05.4]} 46. Bxf4 {[%clk 0:00:07.7]} 46... Rh8 {[%clk 0:00:04.9]} 47. Kg3
{[%clk 0:00:06.3]} 47... Rg8+ {[%clk 0:00:04.9]} 48. Kh2 {[%clk 0:00:06.5]}
48... Rf8 {[%clk 0:00:05.3]} 49. Bg3 {[%clk 0:00:06.1]} 49... Rxf3 {[%clk
0:00:05.1]} 50. Re3 {[%clk 0:00:05.6]} 50... Rf5 {[%clk 0:00:04.6]} 51. Rd3
{[%clk 0:00:04.7]} 51... Qh1# {[%clk 0:00:04.5]} 0-1

[Event "Early-Titled-Tuesday-Blitz-September-05-2023"]
[Site "Chess.com"]
[Date "2023.09.05"]
[Round "10"]
[White "nihalsarin"]
[Black "artooon"]
[Result "1-0"]
[WhiteElo "3137"]
[BlackElo "3049"]
[TimeControl "180+1"]
[EndTime "9:55:04 PDT"]
[Termination "nihalsarin won by checkmate"]

1. Nf3 {[%clk 0:03:00.9]} 1... Nf6 {[%clk 0:03:00.2]} 2. b3 {[%clk 0:03:01.8]}
2... d5 {[%clk 0:03:00.7]} 3. Bb2 {[%clk 0:03:02.4]} 3... c5 {[%clk 0:03:01]} 4.
e3 {[%clk 0:03:03.1]} 4... a6 {[%clk 0:03:01.7]} 5. c4 {[%clk 0:03:02.5]} 5...
Nc6 {[%clk 0:03:02.3]} 6. cxd5 {[%clk 0:03:02.7]} 6... Nxd5 {[%clk 0:03:03.2]}
7. Nc3 {[%clk 0:03:03.2]} 7... e6 {[%clk 0:03:01.1]} 8. a3 {[%clk 0:03:03]} 8...
Be7 {[%clk 0:03:01.3]} 9. Qc2 {[%clk 0:03:03.3]} 9... O-O {[%clk 0:03:01.2]} 10.
h4 {[%clk 0:03:03.9]} 10... Bf6 {[%clk 0:03:00.4]} 11. Bd3 {[%clk 0:03:01]}
11... h6 {[%clk 0:02:59.6]} 12. Bh7+ {[%clk 0:02:55.8]} 12... Kh8 {[%clk
0:02:59.4]} 13. Be4 {[%clk 0:02:56.7]} 13... Bxc3 {[%clk 0:02:45.9]} 14. Bxc3
{[%clk 0:02:55.6]} 14... f5 {[%clk 0:02:46.6]} 15. Bd3 {[%clk 0:02:49.3]} 15...
b5 {[%clk 0:02:46.2]} 16. Be2 {[%clk 0:02:43.7]} 16... Bb7 {[%clk 0:02:32.1]}
17. Bb2 {[%clk 0:02:43.4]} 17... Rc8 {[%clk 0:02:27.1]} 18. O-O {[%clk 0:02:34]}
18... e5 {[%clk 0:02:18.7]} 19. Bxe5 {[%clk 0:02:21.5]} 19... Nxe5 {[%clk
0:02:08.5]} 20. Nxe5 {[%clk 0:02:22.4]} 20... Kg8 {[%clk 0:02:06.5]} 21. h5
{[%clk 0:02:15.3]} 21... Qd6 {[%clk 0:01:58]} 22. Ng6 {[%clk 0:02:07.7]} 22...
Rf7 {[%clk 0:01:51.3]} 23. Bf3 {[%clk 0:02:07.9]} 23... Qe6 {[%clk 0:01:36]} 24.
Rac1 {[%clk 0:02:02.9]} 24... Nf6 {[%clk 0:01:36]} 25. Nf4 {[%clk 0:02:02.6]}
25... Qe5 {[%clk 0:01:30.8]} 26. Bxb7 {[%clk 0:02:00.3]} 26... Rxb7 {[%clk
0:01:31.7]} 27. d4 {[%clk 0:02:01.1]} 27... Qe4 {[%clk 0:01:26.2]} 28. dxc5
{[%clk 0:01:59.9]} 28... Qxc2 {[%clk 0:01:26.5]} 29. Rxc2 {[%clk 0:02:00.8]}
29... b4 {[%clk 0:01:27.4]} 30. axb4 {[%clk 0:01:37.9]} 30... Rxb4 {[%clk
0:01:28.3]} 31. Ra1 {[%clk 0:01:38.1]} 31... Rxb3 {[%clk 0:01:14.5]} 32. Rxa6
{[%clk 0:01:32.5]} 32... Rb1+ {[%clk 0:00:57.4]} 33. Kh2 {[%clk 0:01:32.3]}
33... Ng4+ {[%clk 0:00:55.3]} 34. Kg3 {[%clk 0:01:31.8]} 34... Nf6 {[%clk
0:00:55.2]} 35. c6 {[%clk 0:01:05.9]} 35... Ne4+ {[%clk 0:00:47.2]} 36. Kf3
{[%clk 0:01:05.2]} 36... Rf1 {[%clk 0:00:33.7]} 37. g3 {[%clk 0:01:01.1]} 37...
Kh7 {[%clk 0:00:25.1]} 38. Kg2 {[%clk 0:00:52.9]} 38... Rd1 {[%clk 0:00:25.7]}
39. Ra5 {[%clk 0:00:46.3]} 39... Rd6 {[%clk 0:00:17.8]} 40. Rxf5 {[%clk
0:00:39.2]} 40... Rdxc6 {[%clk 0:00:18]} 41. Rxc6 {[%clk 0:00:40.1]} 41... Rxc6
{[%clk 0:00:18.8]} 42. Rf8 {[%clk 0:00:40.8]} 42... Nf6 {[%clk 0:00:18.1]} 43.
Kf3 {[%clk 0:00:39]} 43... Rc1 {[%clk 0:00:16.8]} 44. g4 {[%clk 0:00:38.1]}
44... Rc5 {[%clk 0:00:08.4]} 45. Ng6 {[%clk 0:00:35.7]} 45... Ng8 {[%clk
0:00:08.9]} 46. e4 {[%clk 0:00:32.1]} 46... Rc3+ {[%clk 0:00:08.3]} 47. Ke2
{[%clk 0:00:31.8]} 47... Rc2+ {[%clk 0:00:08.9]} 48. Kd3 {[%clk 0:00:31.8]}
48... Ra2 {[%clk 0:00:09.6]} 49. e5 {[%clk 0:00:28.7]} 49... Ra3+ {[%clk
0:00:10.3]} 50. Kc2 {[%clk 0:00:28.8]} 50... Ra2+ {[%clk 0:00:10]} 51. Kc3
{[%clk 0:00:28.5]} 51... Ra3+ {[%clk 0:00:08.1]} 52. Kb4 {[%clk 0:00:28.5]}
52... Ra6 {[%clk 0:00:08.7]} 53. Kb5 {[%clk 0:00:24.8]} 53... Re6 {[%clk
0:00:09.2]} 54. f4 {[%clk 0:00:24.5]} 54... Rxg6 {[%clk 0:00:02.9]} 55. hxg6+
{[%clk 0:00:24.8]} 55... Kh8 {[%clk 0:00:03.8]} 56. e6 {[%clk 0:00:24.8]} 56...
h5 {[%clk 0:00:04.7]} 57. e7 {[%clk 0:00:25.2]} 57... h4 {[%clk 0:00:03.3]} 58.
Rxg8+ {[%clk 0:00:24.9]} 58... Kxg8 {[%clk 0:00:04.2]} 59. e8=Q# {[%clk
0:00:25.8]} 1-0

[Event "Early-Titled-Tuesday-Blitz-September-05-2023"]
[Site "Chess.com"]
[Date "2023.09.05"]
[Round "10"]
[White "aranibos"]
[Black "Nick12772"]
[Result "0-1"]
[WhiteElo "2253"]
[BlackElo "2329"]
[TimeControl "180+1"]
[EndTime "9:55:06 PDT"]
[Termination "Nick12772 won on time"]

1. e4 {[%clk 0:03:00.9]} 1... e6 {[%clk 0:02:59.1]} 2. d4 {[%clk 0:02:59.7]}
2... d5 {[%clk 0:03:00]} 3. Nc3 {[%clk 0:02:59.2]} 3... Bb4 {[%clk 0:02:59.5]}
4. Bd2 {[%clk 0:02:59.4]} 4... Ne7 {[%clk 0:02:50.8]} 5. Qg4 {[%clk 0:02:46.4]}
5... Kf8 {[%clk 0:02:46]} 6. e5 {[%clk 0:02:40.1]} 6... c5 {[%clk 0:02:44.2]} 7.
O-O-O {[%clk 0:02:33.7]} 7... cxd4 {[%clk 0:02:29.1]} 8. Qxd4 {[%clk 0:02:29.2]}
8... Nbc6 {[%clk 0:02:25.9]} 9. Qh4 {[%clk 0:02:24.7]} 9... Nf5 {[%clk
0:02:18.3]} 10. Qxd8+ {[%clk 0:02:21.5]} 10... Nxd8 {[%clk 0:02:19.2]} 11. Nf3
{[%clk 0:02:07.9]} 11... Nc6 {[%clk 0:01:56.5]} 12. g4 {[%clk 0:01:54.4]} 12...
Nfe7 {[%clk 0:01:53.6]} 13. Nb5 {[%clk 0:01:48.7]} 13... a6 {[%clk 0:01:47]} 14.
Bxb4 {[%clk 0:01:45]} 14... Nxb4 {[%clk 0:01:47.9]} 15. Nd6 {[%clk 0:01:44.7]}
15... Nxa2+ {[%clk 0:01:39.8]} 16. Kb1 {[%clk 0:01:44.9]} 16... Nb4 {[%clk
0:01:40.7]} 17. Ng5 {[%clk 0:01:43.8]} 17... Nbc6 {[%clk 0:01:35.6]} 18. Ngxf7
{[%clk 0:01:42.5]} 18... Rg8 {[%clk 0:01:35.5]} 19. f4 {[%clk 0:01:42.6]} 19...
Bd7 {[%clk 0:01:32.6]} 20. Bd3 {[%clk 0:01:42.3]} 20... g6 {[%clk 0:01:31.4]}
21. h4 {[%clk 0:01:42.2]} 21... Nc8 {[%clk 0:01:31]} 22. h5 {[%clk 0:01:40.1]}
22... Nxd6 {[%clk 0:01:29.7]} 23. Nxd6 {[%clk 0:01:40.1]} 23... Nb4 {[%clk
0:01:19.4]} 24. hxg6 {[%clk 0:01:37.7]} 24... hxg6 {[%clk 0:01:12]} 25. Rh7
{[%clk 0:01:27.9]} 25... Rg7 {[%clk 0:01:12.2]} 26. Rxg7 {[%clk 0:01:18.4]}
26... Kxg7 {[%clk 0:01:13.1]} 27. Nxb7 {[%clk 0:01:17.9]} 27... Nxd3 {[%clk
0:01:10]} 28. cxd3 {[%clk 0:01:08]} 28... Rf8 {[%clk 0:01:06.2]} 29. Nc5 {[%clk
0:00:59.3]} 29... Bc8 {[%clk 0:01:04.6]} 30. Rf1 {[%clk 0:00:56.4]} 30... g5
{[%clk 0:01:01.1]} 31. f5 {[%clk 0:00:56.6]} 31... exf5 {[%clk 0:01:01.1]} 32.
gxf5 {[%clk 0:00:41.3]} 32... Rxf5 {[%clk 0:01:00.8]} 33. Re1 {[%clk 0:00:34.3]}
33... g4 {[%clk 0:00:51.3]} 34. e6 {[%clk 0:00:32.2]} 34... Kf8 {[%clk
0:00:43.6]} 35. d4 {[%clk 0:00:20.4]} 35... g3 {[%clk 0:00:39.7]} 36. Rg1 {[%clk
0:00:20.6]} 36... Rg5 {[%clk 0:00:37.8]} 37. Kc2 {[%clk 0:00:21.1]} 37... Ke7
{[%clk 0:00:35.9]} 38. Kd3 {[%clk 0:00:20.2]} 38... g2 {[%clk 0:00:32.7]} 39.
Ke3 {[%clk 0:00:19.3]} 39... Bxe6 {[%clk 0:00:31.8]} 40. Nxe6 {[%clk 0:00:19.4]}
40... Kxe6 {[%clk 0:00:32.1]} 41. Kf4 {[%clk 0:00:19.2]} 41... Rg8 {[%clk
0:00:31.1]} 42. Kf3 {[%clk 0:00:19.8]} 42... Kf5 {[%clk 0:00:29.7]} 43. Kf2
{[%clk 0:00:17]} 43... Ke4 {[%clk 0:00:29]} 44. Re1+ {[%clk 0:00:13.2]} 44...
Kxd4 {[%clk 0:00:29.1]} 45. Kg1 {[%clk 0:00:13.1]} 45... Kc4 {[%clk 0:00:25.9]}
46. Rd1 {[%clk 0:00:13.3]} 46... d4 {[%clk 0:00:26]} 47. Rc1+ {[%clk 0:00:13]}
47... Kb3 {[%clk 0:00:25.7]} 48. Rd1 {[%clk 0:00:12.8]} 48... Rg4 {[%clk
0:00:20.9]} 49. Ra1 {[%clk 0:00:11.1]} 49... Kxb2 {[%clk 0:00:19.9]} 50. Rxa6
{[%clk 0:00:11.1]} 50... d3 {[%clk 0:00:17]} 51. Rd6 {[%clk 0:00:11.7]} 51...
Kc3 {[%clk 0:00:15.8]} 52. Rc6+ {[%clk 0:00:11.3]} 52... Rc4 {[%clk 0:00:12.5]}
53. Rd6 {[%clk 0:00:09.9]} 53... d2 {[%clk 0:00:09.3]} 54. Kxg2 {[%clk
0:00:09.4]} 54... Rd4 {[%clk 0:00:06.9]} 55. Rc6+ {[%clk 0:00:07.7]} 55... Kd3
{[%clk 0:00:07.2]} 56. Kf2 {[%clk 0:00:05.4]} 56... d1=Q {[%clk 0:00:07.3]} 0-1